fUSD/lending_fUSD_20250222
["ID","MTS","AMOUNT","RATE_DAILY","PERIOD"]
[354096731,1740234303362,-657.98,0.00011205,2]
[354096732,1740234303388,-500.0,0.00011205,2]
[354096733,1740234303414,-2004.34824867,0.00011233,2]
[354096734,1740234303442,-458598.53468011,0.00011287,3]
[354096735,1740234303468,-233.947951,0.00011287,2]
[354096736,1740234303495,-233.947951,0.00011287,2]
[354096737,1740234303522,-206.017156,0.00011287,2]
[354096738,1740234303548,-181.77984,0.00011287,2]
[354096739,1740234303574,-181.77984,0.00011287,2]
[354096740,1740234303599,-500.0,0.00011287,2]
[354096741,1740234303624,-500.0,0.00011287,2]
[354096742,1740234303648,-500.0,0.00011287,2]
[354096743,1740234303673,-500.0,0.00011287,2]
[354096744,1740234303697,-425.5603326,0.00011287,2]
[354096745,1740234303723,-500.0,0.00011287,2]
[354096746,1740234303746,-500.0,0.00011287,2]
[354096747,1740234303770,-500.0,0.00011287,2]
[354096748,1740234303794,-500.0,0.00011287,2]
[354096749,1740234303818,-500.0,0.00011287,2]
[354096750,1740234303842,-500.0,0.00011287,2]
[354096751,1740234303865,-500.0,0.00011287,2]
[354096752,1740234303889,-500.0,0.00011287,2]
[354096753,1740234303913,-500.0,0.00011287,2]
[354096754,1740234303937,-500.0,0.00011287,2]
[354096755,1740234303961,-500.0,0.00011287,2]
[354096756,1740234303986,-500.0,0.00011287,2]
[354096757,1740234304011,-500.0,0.00011287,2]
[354096758,1740234304035,-500.0,0.00011287,2]
[354096759,1740234304062,-500.0,0.00011287,2]
[354096760,1740234304089,-500.0,0.00011287,2]
[354096761,1740234304116,-500.0,0.00011287,2]
[354096762,1740234304144,-500.0,0.00011287,2]
[354096763,1740234304177,-500.0,0.00011287,2]
[354096764,1740234304204,-500.0,0.00011287,2]
[354096765,1740234304232,-500.0,0.00011287,2]
[354096766,1740234304260,-500.0,0.00011287,2]
[354096767,1740234304288,-500.0,0.00011287,2]
[354096768,1740234304314,-500.0,0.00011287,2]
[354096769,1740234304339,-500.0,0.00011287,2]
[354096770,1740234304363,-500.0,0.00011287,2]
[354096771,1740234304387,-500.0,0.00011287,2]
[354096772,1740234304413,-500.0,0.00011287,2]
[354096773,1740234304438,-500.0,0.00011287,2]
[354096774,1740234304465,-500.0,0.00011287,2]
[354096775,1740234304491,-366.46924489,0.00011287,2]
[354096776,1740234304525,-500.0,0.00011287,2]
[354096777,1740234304554,-436.40609688,0.00011287,2]
[354096778,1740234304585,-563.75,0.00011287,2]
[354096779,1740234304614,-509.57967052,0.00011287,2]
[354096780,1740234304639,-500.0,0.00011287,2]
[354096781,1740234304670,-500.0,0.00011287,2]
[354096782,1740234304705,-500.0,0.00011287,2]
[354096783,1740234304738,-308.57064742,0.00011287,2]
[354096784,1740234304763,-500.0,0.00011287,2]
[354096785,1740234304806,-507.99091504,0.00011287,2]
[354096786,1740234304833,-510.07946363,0.00011287,2]
[354096787,1740234304858,-500.0,0.00011287,2]
[354096788,1740234304884,-276.00601853,0.00011287,2]
[354096789,1740234304908,-500.0,0.00011287,2]
[354096790,1740234304934,-500.0,0.00011287,2]
[354096791,1740234304961,-510.89909596,0.00011287,2]
[354096792,1740234304985,-500.0,0.00011287,2]
[354096793,1740234305008,-500.0,0.00011287,2]
[354096794,1740234305032,-500.0,0.00011287,2]
[354096795,1740234305055,-381.55202471,0.00011287,2]
[354096796,1740234305078,-508.4101634,0.00011287,2]
[354096797,1740234305100,-500.0,0.00011287,2]
[354096798,1740234305123,-500.0,0.00011287,2]
[354096799,1740234305148,-500.0,0.00011287,2]
[354096800,1740234305176,-500.0,0.00011287,2]
[354096801,1740234305199,-500.0,0.00011287,2]
[354096802,1740234305223,-500.0,0.00011287,2]
[354096803,1740234305250,-500.0,0.00011287,2]
[354096804,1740234305273,-500.0,0.00011287,2]
[354096805,1740234305296,-500.0,0.00011287,2]
[354096806,1740234305320,-250.188208,0.00011287,2]
[354096807,1740234305343,-500.0,0.00011287,2]
[354096808,1740234305367,-500.0,0.00011287,2]
[354096809,1740234305392,-500.0,0.00011287,2]
[354096810,1740234305417,-500.0,0.00011287,2]
[354096811,1740234305442,-500.0,0.00011287,2]
[354096812,1740234305467,-500.0,0.00011287,2]
[354096813,1740234305490,-500.0,0.00011287,2]
[354096814,1740234305514,-500.0,0.00011287,2]
[354096815,1740234305539,-500.0,0.00011287,2]
[354096816,1740234305563,-500.0,0.00011287,2]
[354096817,1740234305587,-500.0,0.00011287,2]
[354096818,1740234305609,-500.0,0.00011287,2]
[354096819,1740234305633,-500.0,0.00011287,2]
[354096820,1740234305657,-500.0,0.00011287,2]
[354096821,1740234305680,-500.0,0.00011287,2]
[354096822,1740234305705,-500.0,0.00011287,2]
[354096823,1740234305730,-500.0,0.00011287,2]
[354096824,1740234305753,-500.0,0.00011287,2]
[354096825,1740234305777,-500.0,0.00011287,2]
[354096826,1740234305800,-238.71335393,0.00011287,2]
[354096827,1740234305823,-500.0,0.00011287,2]
[354096828,1740234305847,-500.0,0.00011287,2]
[354096829,1740234305870,-500.0,0.00011287,2]
[354096830,1740234305895,-500.0,0.00011287,2]
[354096831,1740234305919,-500.0,0.00011287,2]
[354096832,1740234305943,-500.0,0.00011287,2]
[354096833,1740234305967,-500.0,0.00011287,2]
[354096834,1740234305991,-500.0,0.00011287,2]
[354096835,1740234306018,-500.0,0.00011287,2]
[354096836,1740234306041,-612.48821776,0.00011287,2]
[354096837,1740234306066,-300.08451254,0.00011287,2]
[354096838,1740234306091,-500.0,0.00011287,2]
[354096839,1740234306115,-500.0,0.00011287,2]
[354096840,1740234306140,-500.0,0.00011287,2]
[354096841,1740234306166,-500.0,0.00011287,2]
[354096842,1740234306192,-500.0,0.00011287,2]
[354096843,1740234306217,-500.0,0.00011287,2]
[354096844,1740234306242,-282.96304946,0.00011287,2]
[354096845,1740234306267,-500.0,0.00011287,2]
[354096846,1740234306292,-500.0,0.00011287,2]
[354096847,1740234306316,-500.0,0.00011287,2]
[354096848,1740234306342,-500.0,0.00011287,2]
[354096849,1740234306368,-500.0,0.00011287,2]
[354096850,1740234306394,-500.0,0.00011287,2]
[354096851,1740234306420,-500.0,0.00011287,2]
[354096852,1740234306445,-500.0,0.00011287,2]
[354096853,1740234306471,-177.12515647,0.00011287,2]
[354096854,1740234306498,-500.0,0.00011287,2]
[354096855,1740234306523,-500.0,0.00011287,2]
[354096856,1740234306549,-500.0,0.00011287,2]
[354096857,1740234306575,-500.0,0.00011287,2]
[354096858,1740234306600,-500.0,0.00011287,2]
[354096859,1740234306630,-500.0,0.00011287,2]
[354096860,1740234306656,-500.0,0.00011287,2]
[354096861,1740234306814,-500.0,0.00011287,2]
[354096862,1740234306840,-500.0,0.00011287,2]
[354096863,1740234306870,-500.0,0.00011287,2]
[354096864,1740234306900,-500.0,0.00011287,2]
[354096865,1740234306951,-645.01,0.00011287,2]
[354096866,1740234307000,-500.0,0.00011287,2]
[354096867,1740234307052,-500.0,0.00011287,2]
[354096868,1740234307112,-500.0,0.00011287,2]
[354096869,1740234307166,-500.0,0.00011287,2]
[354096870,1740234307220,-500.0,0.00011287,2]
[354096871,1740234307269,-500.0,0.00011287,2]
[354096872,1740234307339,-622.74,0.00011287,2]
[354096873,1740234307395,-500.0,0.00011287,2]
[354096874,1740234307445,-500.0,0.00011287,2]
[354096875,1740234307513,-500.0,0.00011287,2]
[354096876,1740234307596,-500.0,0.00011287,2]
[354096877,1740234307666,-500.0,0.00011287,2]
[354096878,1740234307695,-338.57800435,0.00011287,2]
[354096879,1740234307725,-292.6455344,0.00011287,2]
[354096880,1740234308169,3743.7428,9.9e-05,2]
[354096881,1740234308735,4500.2168,9.9e-05,2]
[354096882,1740234309046,1000.0,9.9e-05,2]
[354096883,1740234309080,300.0,9.899e-05,2]
[354096884,1740234309337,1298139.93561182,0.0001,2]
[354096885,1740234313773,2500.0,9.9e-05,2]
[354096889,1740234400605,550.0,0.0001,2]
[354096893,1740234476385,251156.27241674,0.0001,2]
[354096911,1740234631916,-300.0,9.999e-05,2]
[354096912,1740234631926,-1542.72328551,0.0001,2]
[354096913,1740234631996,-756.24437504,0.0001,2]
[354096914,1740234632008,-284.169996,0.0001,2]
[354096915,1740234632019,-3282.33897135,0.0001,2]
[354096916,1740234632031,-4437.8448915,0.0001,2]
[354096917,1740234632076,-13480.79139962,0.0001,2]
[354096918,1740234632091,-13518.06271111,0.0001,2]
[354096922,1740234632300,-320.29041264,0.0001,2]
[354096923,1740234632311,-13001.69640204,0.0001,2]
[354096924,1740234632323,-19462.73970147,0.0001,2]
[354096925,1740234632335,-29935.6879305,0.0001,2]
[354097071,1740234637795,-3142.37084825,0.0001,2]
[354097075,1740234637876,-889.58900093,0.0001,2]
[354097076,1740234637887,-1049.99999,0.0001,2]
[354097077,1740234637953,-4184.156181,0.0001,2]
[354097078,1740234637965,-25050.29541261,0.0001,2]
[354097079,1740234637976,-2516.00545635,0.0001,2]
[354097080,1740234638033,-910.04997864,0.0001,2]
[354097081,1740234638044,-257.50546521,0.0001,2]
[354097082,1740234638055,-978.1,0.0001,2]
[354097083,1740234638109,-494.369955,0.0001,2]
[354097085,1740234638121,-268.28055403,0.0001,2]
[354097174,1740234639979,-1170.27718733,0.0001,2]
[354097175,1740234639990,-491.08843674,0.0001,2]
[354097214,1740234654011,-2992.80000004,0.0001,2]
[354097215,1740234654022,-4090.91701531,0.0001,2]
[354097216,1740234654411,-587164.44661747,0.0001,2]
[354097217,1740234654422,-491.72,0.0001,2]
[354097218,1740234654434,-494.11,0.0001,2]
[354097219,1740234654444,-1000.0,0.00010423,2]
[354097220,1740234654453,-536.94898989,0.00010758,2]
[354097221,1740234654463,-508.77,0.00010758,2]
[354097222,1740234654472,-493.89,0.00010858,2]
[354097223,1740234654481,-508.15,0.00010858,2]
[354097224,1740234654490,-7500.0,0.00010858,2]
[354097225,1740234654499,-504.47,0.00010858,2]
[354097226,1740234654509,-55555.0,0.00010858,2]
[354097227,1740234654518,-496.43,0.00010858,2]
[354097228,1740234654527,-493.82,0.00010858,2]
[354097229,1740234654536,-502.76,0.00010858,2]
[354097230,1740234654545,-508.52,0.00010858,2]
[354097231,1740234654554,-504.85,0.00010858,2]
[354097232,1740234654564,-500.55,0.00010858,2]
[354097233,1740234654574,-1880.9819,0.00010858,2]
[354097234,1740234654583,-493.4,0.00010858,2]
[354097235,1740234654592,-169.28325999,0.000109,2]
[354097236,1740234654601,-500.0,0.00010958,2]
[354097237,1740234654610,-500.0,0.00010958,2]
[354097238,1740234654618,-500.0,0.00010958,2]
[354097239,1740234654627,-500.0,0.00010958,2]
[354097240,1740234654636,-500.0,0.00010958,2]
[354097241,1740234654645,-500.0,0.00010958,2]
[354097242,1740234654654,-500.0,0.00010958,2]
[354097243,1740234654663,-500.0,0.00010958,2]
[354097244,1740234654672,-500.0,0.00010958,2]
[354097245,1740234654681,-500.0,0.00010958,2]
[354097246,1740234654691,-207.58554928,0.00010958,2]
[354097247,1740234654700,-500.0,0.00010958,2]
[354097248,1740234654710,-500.0,0.00010958,2]
[354097249,1740234654719,-500.0,0.00010958,2]
[354097250,1740234654729,-500.0,0.00010958,2]
[354097251,1740234654738,-500.0,0.00010958,2]
[354097252,1740234654748,-716.21,0.00010958,2]
[354097253,1740234654757,-340.85496977,0.00010958,2]
[354097254,1740234654766,-152.000529,0.00010958,2]
[354097255,1740234654775,-152.000529,0.00010958,2]
[354097256,1740234654785,-500.0,0.00010958,2]
[354097257,1740234654794,-500.0,0.00010958,2]
[354097258,1740234654803,-500.0,0.00010958,2]
[354097259,1740234654811,-500.0,0.00010958,2]
[354097260,1740234654822,-500.0,0.00010958,2]
[354097261,1740234654831,-500.0,0.00010958,2]
[354097262,1740234654840,-500.0,0.00010958,2]
[354097263,1740234654850,-500.0,0.00010958,2]
[354097264,1740234654860,-500.0,0.00010958,2]
[354097265,1740234654869,-537.4536123,0.00010958,2]
[354097266,1740234654878,-500.0,0.00010958,2]
[354097267,1740234654888,-500.0,0.00010958,2]
[354097268,1740234654899,-500.0,0.00010958,2]
[354097269,1740234654908,-500.0,0.00010958,2]
[354097270,1740234654918,-303.09,0.00010958,2]
[354097271,1740234654927,-160.243652,0.00010958,2]
[354097272,1740234654935,-500.0,0.00010958,2]
[354097273,1740234654944,-500.0,0.00010958,2]
[354097274,1740234654953,-500.0,0.00010958,2]
[354097275,1740234654963,-183.04,0.00010958,2]
[354097276,1740234654972,-500.0,0.00010958,2]
[354097277,1740234654982,-500.0,0.00010958,2]
[354097278,1740234654991,-512.37350522,0.00010958,2]
[354097279,1740234655000,-500.0,0.00010958,2]
[354097280,1740234655009,-500.0,0.00010958,2]
[354097281,1740234655019,-500.0,0.00010958,2]
[354097282,1740234655029,-500.0,0.00010958,2]
[354097283,1740234655040,-500.0,0.00010958,2]
[354097284,1740234655052,-628.38,0.00010958,2]
[354097285,1740234655061,-500.0,0.00010958,2]
[354097286,1740234655071,-466.40940289,0.00010958,2]
[354097287,1740234655080,-500.0,0.00010958,2]
[354097288,1740234655089,-500.0,0.00010958,2]
[354097289,1740234655099,-500.0,0.00010958,2]
[354097290,1740234655108,-500.0,0.00010958,2]
[354097291,1740234655117,-500.0,0.00010958,2]
[354097292,1740234655128,-500.0,0.00010958,2]
[354097293,1740234655138,-500.0,0.00010958,2]
[354097294,1740234655147,-502.01879298,0.00010958,2]
[354097295,1740234655157,-500.0,0.00010958,2]
[354097296,1740234655166,-500.0,0.00010958,2]
[354097297,1740234655175,-548.32,0.00010958,2]
[354097298,1740234655184,-402.80348932,0.00010958,2]
[354097299,1740234655194,-500.0,0.00010958,2]
[354097300,1740234655203,-500.0,0.00010958,2]
[354097301,1740234655212,-500.0,0.00010958,2]
[354097302,1740234655221,-500.0,0.00010958,2]
[354097303,1740234655231,-500.0,0.00010958,2]
[354097304,1740234655239,-571.92,0.00010958,2]
[354097305,1740234655248,-500.0,0.00010958,2]
[354097306,1740234655261,-500.0,0.00010958,2]
[354097307,1740234655271,-500.0,0.00010958,2]
[354097308,1740234655280,-500.0,0.00010958,2]
[354097309,1740234655289,-500.0,0.00010958,2]
[354097310,1740234655298,-302.7,0.00010958,2]
[354097311,1740234655309,-500.0,0.00010958,2]
[354097312,1740234655318,-500.0,0.00010958,2]
[354097313,1740234655327,-500.0,0.00010958,2]
[354097314,1740234655336,-500.0,0.00010958,2]
[354097315,1740234655346,-500.0,0.00010958,2]
[354097316,1740234655355,-500.0,0.00010958,2]
[354097317,1740234655364,-500.0,0.00010958,2]
[354097318,1740234655373,-500.0,0.00010958,2]
[354097319,1740234655382,-579.8023058,0.00010958,2]
[354097320,1740234655392,-500.0,0.00010958,2]
[354097321,1740234655401,-500.0,0.00010958,2]
[354097322,1740234655410,-541.29,0.00010958,2]
[354097323,1740234655419,-500.0,0.00010958,2]
[354097324,1740234655428,-500.0,0.00010958,2]
[354097325,1740234655438,-500.0,0.00010958,2]
[354097326,1740234655446,-500.0,0.00010958,2]
[354097327,1740234655455,-500.0,0.00010958,2]
[354097328,1740234655464,-257.03136756,0.00010958,2]
[354097329,1740234655473,-500.0,0.00010958,2]
[354097330,1740234655483,-548.65,0.00010958,2]
[354097331,1740234655492,-500.0,0.00010958,2]
[354097332,1740234655502,-500.0,0.00010958,2]
[354097333,1740234655512,-500.0,0.00010958,2]
[354097334,1740234655522,-500.0,0.00010958,2]
[354097335,1740234655531,-500.0,0.00010958,2]
[354097336,1740234655540,-500.0,0.00010958,2]
[354097337,1740234655550,-500.0,0.00010958,2]
[354097338,1740234655559,-500.0,0.00010958,2]
[354097339,1740234655569,-500.0,0.00010958,2]
[354097340,1740234655578,-500.0,0.00010958,2]
[354097341,1740234655587,-500.0,0.00010958,2]
[354097342,1740234655597,-500.0,0.00010958,2]
[354097343,1740234655606,-500.0,0.00010958,2]
[354097344,1740234655615,-500.0,0.00010958,2]
[354097345,1740234655776,-500.0,0.00010958,2]
[354097346,1740234655787,-500.0,0.00010958,2]
[354097347,1740234655797,-500.0,0.00010958,2]
[354097348,1740234655807,-500.0,0.00010958,2]
[354097349,1740234655816,-500.0,0.00010958,2]
[354097350,1740234655826,-500.0,0.00010958,2]
[354097351,1740234655836,-254.86382957,0.00010958,2]
[354097352,1740234655845,-500.0,0.00010958,2]
[354097353,1740234655855,-500.0,0.00010958,2]
[354097354,1740234655863,-500.0,0.00010958,2]
[354097355,1740234655873,-500.0,0.00010958,2]
[354097356,1740234655882,-500.0,0.00010958,2]
[354097357,1740234655892,-500.0,0.00010958,2]
[354097358,1740234655901,-500.0,0.00010958,2]
[354097359,1740234655910,-564.18346555,0.00010958,2]
[354097360,1740234655920,-500.0,0.00010958,2]
[354097361,1740234655929,-500.0,0.00010958,2]
[354097362,1740234655939,-500.0,0.00010958,2]
[354097363,1740234655948,-634.28436401,0.00010958,2]
[354097364,1740234655958,-500.0,0.00010958,2]
[354097365,1740234655968,-500.0,0.00010958,2]
[354097366,1740234655978,-491.04,0.00010958,2]
[354097367,1740234655988,-500.0,0.0001104,2]
[354097368,1740234655998,-150.99,0.0001104,2]
[354097369,1740234656007,-273.56,0.0001104,2]
[354097370,1740234656017,-299.99,0.0001104,2]
[354097371,1740234656027,-206.55,0.00011041,2]
[354097372,1740234656037,-280.3896955,0.00011041,2]
[354097373,1740234656046,-500.0,0.00011041,2]
[354097374,1740234656056,-500.0,0.00011041,2]
[354097375,1740234656065,-500.0,0.00011041,2]
[354097376,1740234656075,-310.33651355,0.00011041,2]
[354097377,1740234656084,-500.0,0.00011041,2]
[354097378,1740234656094,-500.0,0.00011041,2]
[354097379,1740234656103,-500.0,0.00011041,2]
[354097380,1740234656112,-500.0,0.00011041,2]
[354097381,1740234656122,-358.19467814,0.00011041,2]
[354097382,1740234656131,-500.0,0.00011041,2]
[354097383,1740234656140,-716.21,0.00011041,2]
[354097384,1740234656150,-152.000529,0.00011041,2]
[354097385,1740234656160,-500.0,0.00011041,2]
[354097386,1740234656170,-500.0,0.00011041,2]
[354097387,1740234656180,-508.73372272,0.00011041,2]
[354097388,1740234656189,-500.0,0.00011041,2]
[354097389,1740234656199,-500.0,0.00011041,2]
[354097390,1740234656208,-500.0,0.00011041,2]
[354097391,1740234656218,-500.0,0.00011041,2]
[354097392,1740234656228,-510.13492987,0.00011041,2]
[354097393,1740234656238,-500.0,0.00011041,2]
[354097394,1740234656247,-500.0,0.00011041,2]
[354097395,1740234656257,-160.243652,0.00011041,2]
[354097396,1740234656272,-180.9,0.00011041,2]
[354097397,1740234656282,-500.0,0.00011041,2]
[354097398,1740234656291,-500.0,0.00011041,2]
[354097399,1740234656300,-500.0,0.00011041,2]
[354097400,1740234656311,-506.65706216,0.00011041,2]
[354097401,1740234656320,-500.0,0.00011041,2]
[354097402,1740234656330,-500.0,0.00011041,2]
[354097403,1740234656340,-500.0,0.00011041,2]
[354097404,1740234656349,-500.0,0.00011041,2]
[354097405,1740234656360,-401.71,0.00011041,2]
[354097406,1740234656369,-500.0,0.00011041,2]
[354097407,1740234656379,-500.0,0.00011041,2]
[354097408,1740234656390,-500.0,0.00011041,2]
[354097409,1740234656400,-500.0,0.00011041,2]
[354097410,1740234656410,-500.0,0.00011041,2]
[354097411,1740234656420,-500.0,0.00011041,2]
[354097412,1740234656430,-500.0,0.00011041,2]
[354097413,1740234656439,-500.0,0.00011041,2]
[354097414,1740234656449,-548.32,0.00011041,2]
[354097415,1740234656459,-500.0,0.00011041,2]
[354097416,1740234656479,-500.0,0.00011041,2]
[354097417,1740234656490,-500.0,0.00011041,2]
[354097418,1740234656500,-500.0,0.00011041,2]
[354097419,1740234656510,-500.0,0.00011041,2]
[354097420,1740234656520,-500.0,0.00011041,2]
[354097421,1740234656530,-500.0,0.00011041,2]
[354097422,1740234656540,-500.0,0.00011041,2]
[354097423,1740234656550,-500.0,0.00011041,2]
[354097424,1740234656560,-500.0,0.00011041,2]
[354097425,1740234656570,-500.0,0.00011041,2]
[354097426,1740234656581,-500.0,0.00011041,2]
[354097427,1740234656592,-500.0,0.00011041,2]
[354097428,1740234656602,-500.0,0.00011041,2]
[354097429,1740234656613,-500.0,0.00011041,2]
[354097430,1740234656622,-500.0,0.00011041,2]
[354097431,1740234656632,-500.0,0.00011041,2]
[354097432,1740234656642,-500.0,0.00011041,2]
[354097433,1740234656652,-500.0,0.00011041,2]
[354097434,1740234656662,-489.59266292,0.00011041,2]
[354097435,1740234656672,-500.0,0.00011041,2]
[354097436,1740234656682,-500.0,0.00011041,2]
[354097437,1740234656691,-500.0,0.00011041,2]
[354097438,1740234656701,-548.65,0.00011041,2]
[354097439,1740234656711,-500.0,0.00011041,2]
[354097440,1740234656721,-500.0,0.00011041,2]
[354097441,1740234656730,-534.68814748,0.00011041,2]
[354097442,1740234656740,-500.0,0.00011041,2]
[354097443,1740234656749,-500.0,0.00011041,2]
[354097444,1740234656759,-500.0,0.00011041,2]
[354097445,1740234656769,-500.0,0.00011041,2]
[354097446,1740234656779,-500.0,0.00011041,2]
[354097447,1740234656789,-500.0,0.00011041,2]
[354097448,1740234656799,-500.0,0.00011041,2]
[354097449,1740234656809,-500.0,0.00011041,2]
[354097450,1740234656818,-500.0,0.00011041,2]
[354097451,1740234656828,-500.0,0.00011041,2]
[354097452,1740234656838,-218.08,0.00011041,2]
[354097453,1740234656848,-500.0,0.00011041,2]
[354097454,1740234656857,-500.0,0.00011041,2]
[354097455,1740234656867,-500.0,0.00011041,2]
[354097456,1740234656876,-500.0,0.00011041,2]
[354097457,1740234656886,-500.0,0.00011041,2]
[354097458,1740234656896,-500.0,0.00011041,2]
[354097459,1740234656906,-500.0,0.00011041,2]
[354097460,1740234656916,-500.0,0.00011041,2]
[354097461,1740234656925,-500.0,0.00011041,2]
[354097462,1740234656935,-575.27417122,0.00011041,2]
[354097463,1740234656945,-500.0,0.00011041,2]
[354097464,1740234656955,-243.49901637,0.00011041,2]
[354097465,1740234656964,-500.0,0.00011041,2]
[354097466,1740234656974,-500.0,0.00011041,2]
[354097467,1740234656984,-492.46,0.00011041,2]
[354097468,1740234656993,-397.8537986,0.00011061,2]
[354097469,1740234657002,-280.66616862,0.00011099,2]
[354097470,1740234657012,-500.0,0.00011123,2]
[354097471,1740234657022,-500.0,0.00011123,2]
[354097472,1740234657031,-500.0,0.00011123,2]
[354097473,1740234657041,-153.31410692,0.00011123,2]
[354097474,1740234657050,-500.0,0.00011123,2]
[354097475,1740234657060,-375.38788489,0.00011123,2]
[354097476,1740234657070,-506.82991398,0.00011123,2]
[354097477,1740234657080,-500.0,0.00011123,2]
[354097478,1740234657089,-716.21,0.00011123,2]
[354097479,1740234657099,-152.000529,0.00011123,2]
[354097480,1740234657109,-152.000529,0.00011123,2]
[354097481,1740234657119,-500.0,0.00011123,2]
[354097482,1740234657129,-500.0,0.00011123,2]
[354097483,1740234657138,-200.49,0.00011123,2]
[354097484,1740234657148,-238.62389014,0.00011123,2]
[354097485,1740234657161,-500.0,0.00011123,2]
[354097486,1740234657171,-500.0,0.00011123,2]
[354097487,1740234657181,-500.0,0.00011123,2]
[354097488,1740234657193,-500.0,0.00011123,2]
[354097489,1740234657203,-160.243652,0.00011123,2]
[354097490,1740234657216,-160.243652,0.00011123,2]
[354097491,1740234657226,-500.0,0.00011123,2]
[354097492,1740234657236,-500.0,0.00011123,2]
[354097493,1740234657246,-414.52,0.00011123,2]
[354097494,1740234657255,-500.0,0.00011123,2]
[354097495,1740234657268,-500.0,0.00011123,2]
[354097496,1740234657277,-500.0,0.00011123,2]
[354097497,1740234657287,-500.0,0.00011123,2]
[354097498,1740234657297,-500.0,0.00011123,2]
[354097499,1740234657307,-156.1,0.00011123,2]
[354097500,1740234657317,-511.62951832,0.00011123,2]
[354097501,1740234657327,-500.0,0.00011123,2]
[354097502,1740234657337,-500.0,0.00011123,2]
[354097503,1740234657348,-511.76268825,0.00011123,2]
[354097504,1740234657358,-500.0,0.00011123,2]
[354097505,1740234657367,-500.0,0.00011123,2]
[354097506,1740234657377,-548.32,0.00011123,2]
[354097507,1740234657387,-500.0,0.00011123,2]
[354097508,1740234657396,-305.88,0.00011123,2]
[354097509,1740234657406,-233.98869659,0.00011123,2]
[354097510,1740234657415,-500.0,0.00011123,2]
[354097511,1740234657425,-500.0,0.00011123,2]
[354097512,1740234657435,-500.0,0.00011123,2]
[354097513,1740234657444,-565.47855501,0.00011123,2]
[354097514,1740234657454,-500.0,0.00011123,2]
[354097515,1740234657463,-500.0,0.00011123,2]
[354097516,1740234657473,-500.0,0.00011123,2]
[354097517,1740234657482,-500.0,0.00011123,2]
[354097518,1740234657492,-500.0,0.00011123,2]
[354097519,1740234657501,-500.0,0.00011123,2]
[354097520,1740234657511,-500.0,0.00011123,2]
[354097521,1740234657520,-500.0,0.00011123,2]
[354097522,1740234657530,-500.0,0.00011123,2]
[354097523,1740234657540,-500.0,0.00011123,2]
[354097524,1740234657549,-500.0,0.00011123,2]
[354097525,1740234657558,-516.70336338,0.00011123,2]
[354097526,1740234657570,-500.0,0.00011123,2]
[354097527,1740234657579,-500.0,0.00011123,2]
[354097528,1740234657589,-489.1,0.00011123,2]
[354097529,1740234657598,-548.65,0.00011123,2]
[354097530,1740234657608,-500.0,0.00011123,2]
[354097531,1740234657618,-500.0,0.00011123,2]